Cogmind - Beta 12 @@@ ROGUE MODE // 2023.11.30 @ 02:21:21 // Halloween2019/Abominations Player: Pogmind Result: Destroyed by Lesser Abomination with Improved Medium Laser Performance ------------- Evolutions (1) 500 Regions Visited (2) 400 Robots Destroyed (20) 100 Value Destroyed (793) 793 Prototype IDs (2) 40 Alien Tech Used (0) 0 Bonus (0) 0 TOTAL SCORE: 1833 Bonus ------- None Cogmind --------- Core Integrity 0/400 Matter 112/500 Energy 58/100 System Corruption 17% Temperature Cool (93) Movement Core (250) Ox4 Location -9/Materials Parts ------- > --- POWER (1) -------- (None) > --- PROPULSION (2) --- (None) > --- UTILITY (3) ------ Small Storage Unit High-capacity Matter Pod > --- WEAPON (3) ------- Improved Medium Laser Light Assault Rifle > --- INVENTORY (8) ---- Wheel Compact Wheel Improved EM Shotgun Peak State ------------ > --- POWER ------------ Ion Engine > --- PROPULSION ------- Light Treads Light Treads > --- UTILITY ---------- Small Storage Unit Medium Armor Plating > --- WEAPON ----------- Autogun Autogun > --- INVENTORY -------- Wheel Compact Wheel High-capacity Matter Pod Medium Armor Plating Improved EM Shotgun Assault Rifle Assault Rifle [Rating: 11] Favorites ----------- Power Ion Engine Engine Ion Engine Propulsion Light Treads Treads Light Treads Utility Small Storage Unit Device Seismic Detector Storage Small Storage Unit Protection Medium Armor Plating Weapon Assault Rifle Energy Gun Improved Medium Laser Ballistic Gun Assault Rifle Build | -11 -10 -9 ------- Run | Jun Mat Mat Slots Evolved 2 | . . 2 Power . | . . . Propulsion . | . . . Utility 1 | . . 1 Weapon 1 | . . 1 Parts Attached 22 | 7 9 6 Power 2 | 1 1 . Engine 2 | 1 1 . Core . | . . . Reactor . | . . . Propulsion 2 | 2 . . Treads 2 | 2 . . Leg . | . . . Wheel . | . . . Hover . | . . . Flight . | . . . Utility 5 | 2 2 1 Device 1 | 1 . . Storage 2 | 1 . 1 Processor . | . . . Hackware . | . . . Protection 2 | . 2 . Artifact . | . . . Weapon 13 | 2 6 5 Energy Gun 2 | . 1 1 Energy Cannon . | . . . Ballistic Gun 11 | 2 5 4 Ballistic Cannon . | . . . Launcher . | . . . Special Weapon . | . . . Impact Weapon . | . . . Slashing Weapon . | . . . Piercing Weapon . | . . . Special Melee Weapon . | . . . Unidentified Prototypes 2 | . 1 1 Parts Lost 9 | . 2 7 Power . | . . . Propulsion 2 | . . 2 Utility 2 | . 1 1 Weapon 5 | . 1 4 Highest Loss Streak 7 | . 2 7 To Critical Strikes . | . . . Average Slot Usage (%) 91 | . 97 81 Engine 7 | . 12 . Treads 25 | . 28 22 Device 2 | . 4 . Storage 14 | . 14 16 Protection 10 | . 9 10 Ballistic Gun 29 | . 27 32 Naked Turns . | . . . Heaviest Build 23 | 14 21 23 Greatest Support 40 | 40 40 40 Greatest Overweight (x) . | . . . Average Overweight (x) . | . . . Largest Inventory Capacity 8 | 8 8 8 Average Capacity 7 | 7 8 8 Most Carried 8 | 5 8 6 Average Carried 6 | 4 7 5 Final Capacity 8 | 8 8 8 Final Carried 6 | 5 6 3 Class Distribution -------------------- 67% | Mutant 30% | Tank Dominant Class ---------------- Mutant | -10/Materials Tank | -9/Materials Resources | -11 -10 -9 ----------- Run | Jun Mat Mat Matter Collected 1067 | 302 508 257 Remotely . | . . . Salvage Created 783 | 120 421 242 Parts 63 | 8 25 30 Haulers Intercepted 1 | . . 1 Recyclers Shooed . | . . . Parts Field Recycled . | . . . Retrieved Matter . | . . . Parts Self-Destructed . | . . . Prevented . | . . . Kills | -11 -10 -9 ------- Run | Jun Mat Mat Combat Hostiles Destroyed 14 | . 8 6 Guns 14 | . 8 6 Classes Destroyed 7 | 2 2 3 Worker 1 | . 1 . Tunneler 2 | 2 . . Hauler 1 | . . 1 Recycler 1 | 1 . . Swarmer 2 | . . 2 Abomination 12 | . 8 4 Anomaly 1 | . . 1 Best Kill Streak 2 | 1 2 2 Combat Bots Only 2 | . 2 2 Max Kills in Single Turn 1 | 1 1 1 Gunslinging . | . . . Exploded . | . . . Melee . | . . . Uniques/NPCs Destroyed . | . . . Combat | -11 -10 -9 -------- Run | Jun Mat Mat Damage Taken 4949 | . 1405 3544 Core 628 | . 215 413 Absorbed by Shields . | . . . Core Remaining (%) 57 | 100 14 . Volleys Fired 117 | 8 56 53 Largest 3 | 2 2 3 Hottest 96 | 40 46 96 Shots Fired 284 | 16 111 157 Gun 284 | 16 111 157 Cannon . | . . . Launcher . | . . . Special . | . . . Kinetic 282 | 16 111 155 Thermal 2 | . . 2 Explosive . | . . . Electromagnetic . | . . . Robot Hit Streak 36 | 4 36 36 Robot Miss Streak 4 | 2 4 3 Penetration Max . | . . . Secondary Targets 3 | . 2 1 Max Gunslinging Chain 1 | . 1 1 Shots Hit Robots 230 | 10 92 128 Core Hits 58 | 5 22 31 Critical Kills 1 | . . 1 Critical Parts Destroyed 2 | . . 2 Critical Strikes 3 | . . 3 Destroy 3 | . . 3 Melee Attacks . | . . . Impact . | . . . Slashing . | . . . Piercing . | . . . Sneak Attacks . | . . . Combat Hostiles . | . . . Follow-up Attacks . | . . . Damage Inflicted 3051 | 123 1201 1727 Guns 3032 | 123 1201 1708 Cannons . | . . . Explosions . | . . . Melee . | . . . Ramming 19 | . . 19 Kinetic 3011 | 123 1201 1687 Thermal 21 | . . 21 Explosive . | . . . Electromagnetic . | . . . Impact . | . . . Slashing . | . . . Piercing . | . . . Highest Corruption 17 | . 3 17 Average Corruption 4 | . 2 8 Corruption Purged . | . . . Corruption Blocked . | . . . Effects 20 | . 11 9 Message Errors 8 | . 4 4 Matter Fused 3 | . 2 1 Heat Flow Errors 3 | . 3 . Parts Rejected 1 | . 1 . Data Loss (minor) 1 | . . 1 Data Loss (major) 1 | . . 1 Misfires 1 | . . 1 Weapon Failures 2 | . 1 1 Overload Shots . | . . . Overflow Damage . | . . . Projectiles . | . . . Explosions . | . . . Melee . | . . . Knockbacks . | . . . Impact . | . . . Kinetic . | . . . Secondary . | . . . Self-Inflicted Damage . | . . . Shots . | . . . Rammed 13 | . . 13 Targets Rammed 13 | . . 13 Kicked . | . . . Crushed . | . . . Highest Temperature 162 | . 162 88 Average Temperature 30 | . 27 31 Received Heat Transfer 1791 | . 9 1782 Siege Activations . | . . . Robots Corrupted . | . . . Combat Hostiles . | . . . Parts Fried . | . . . Impact Corruptions . | . . . Robots Melted . | . . . Combat Hostiles . | . . . Parts Melted . | . . . Heat Transferred 9 | . . 9 Parts Sabotaged . | . . . Parts Stolen . | . . . Parts Stripped . | . . . Power Chain Reactions . | . . . Missiles Intercepted . | . . . Alert | -11 -10 -9 ------- Run | Jun Mat Mat Peak Influence 98 | 15 18 98 Initial 9 | . 9 5 Average 33 | 6 9 86 Maximum Alert Level . | . . . Low Security (%) 100 | 100 100 100 Level 1 . | . . . Level 2 . | . . . Level 3 . | . . . Level 4 . | . . . Level 5 . | . . . High Security . | . . . Max Security . | . . . Squads Dispatched 8 | . 3 5 Investigation 1 | . 1 . Extermination . | . . . Reinforcement 2 | . . 2 Assault 5 | . 2 3 Garrison . | . . . Intercept . | . . . Searches Triggered . | . . . Construction Impeded . | . . . Haulers Reinforced . | . . . Active Scanning Responses . | . . . Cargo Convoy Interrupts . | . . . Stealth | -11 -10 -9 --------- Run | Jun Mat Mat Distress Signals 8 | . 1 7 Communications Jammed . | . . . Distress Signals . | . . . Times Spotted 31 | . 11 20 Peak Tracking Total 15 | . 4 15 Tactical Retreats 6 | . 2 4 Traps | -11 -10 -9 ------- Run | Jun Mat Mat Traps Triggered . | . . . Indirectly . | . . . Trap Hack Attempts . | . . . Triggered . | . . . Disarmed . | . . . Reprogrammed . | . . . Reused . | . . . Traps Extracted . | . . . Installed . | . . . Triggered . | . . . Machines | -11 -10 -9 ---------- Run | Jun Mat Mat Machines Disabled . | . . . Max in Single Turn . | . . . Machines Repaired . | . . . Machines Sabotaged . | . . . Overloaded Fab Kills . | . . . Hacking | -11 -10 -9 --------- Run | Jun Mat Mat Machines Accessed 2 | . 2 . Terminals 2 | . 2 . Fabricators . | . . . Repair Stations . | . . . Recycling Units . | . . . Scanalyzers . | . . . Garrison Access . | . . . Total Hacks 4 | . 4 . Successful 2 | . 2 . Failed 2 | . 2 . Catastrophic . | . . . Database Lockouts . | . . . Manual 5 | . 5 . Terminals 4 | . 4 . Fabricators . | . . . Repair Stations . | . . . Recycling Units . | . . . Scanalyzers . | . . . Garrison Access . | . . . Terminal Hacks . | . . . Fabricator Hacks . | . . . Repair Station Hacks . | . . . Recycling Unit Hacks . | . . . Scanalyzer . | . . . Garrison Access Hacks . | . . . Unauthorized Hacks 2 | . 2 . Terminals 2 | . 2 . Botnet 2 | . 2 . Fabricators . | . . . Repair Stations . | . . . Recycling Units . | . . . Scanalyzers . | . . . Garrison Access . | . . . Data Cores Recovered . | . . . Used . | . . . Hacking Detections 2 | . 2 . Full Trace Events . | . . . Feedback Events . | . . . Feedback Blocked . | . . . Robot Schematics Acquired . | . . . Robots Built . | . . . Authchips . | . . . Time . | . . . Total Robot Build Rating . | . . . Part Schematics Acquired . | . . . Parts Built . | . . . Authchips . | . . . Time . | . . . Total Part Build Rating . | . . . Parts Repaired . | . . . Time . | . . . Parts Recycled . | . . . Recycled Matter . | . . . Retrieved Matter . | . . . Retrieved Components . | . . . Parts Scanalyzed . | . . . Part Schematics Acquired . | . . . Parts Damaged . | . . . Bothacking | -11 -10 -9 ------------ Run | Jun Mat Mat Used RIF Installer . | . . . Robots Hacked . | . . . Non-combat . | . . . Combat . | . . . Robot Hacks Applied . | . . . Relay Couplers Released . | . . . Fabnet Peak Effective % . | . . . Robots Rewired . | . . . Allies Hacked . | . . . Hacks Repelled . | . . . Allies | -11 -10 -9 -------- Run | Jun Mat Mat Total Allies . | . . . Largest Group . | . . . Highest-Rated Group . | . . . Highest-Rated Ally . | . . . Total Orders . | . . . Ally Attacks . | . . . Total Damage . | . . . Kills . | . . . Allies Corrupted . | . . . Allies Melted . | . . . Intel | -11 -10 -9 ------- Run | Jun Mat Mat Robot Analysis Total . | . . . Derelict Logs Recovered . | . . . Drone Launches . | . . . Drone Recoveries . | . . . Exploration | -11 -10 -9 ------------- Run | Jun Mat Mat Turns Passed 1025 | 171 522 332 Spaces Moved 316 | 80 187 49 Core 2 | 2 . . Treads 314 | 78 187 49 Legs . | . . . Wheels . | . . . Hover . | . . . Flight . | . . . Fastest Speed 50 | 50 160 160 Average Speed 159 | 157 160 160 Slowest Speed 160 | 160 160 160 Overloaded Moves . | . . . Propulsion Burnouts . | . . . Robots Hopped . | . . . Cave-ins Triggered . | . . . Exploration Rate (%) 18 | 5 42 9 Regions Visited 2 Branch Regions . Pre-discovered Areas . | . . . Known Exits Taken . | . . . Unknown Exits Taken 2 | 1 1 . Scrap Searched . | . . . Spaces Dug . | . . . Terrain Destroyed . | . . . Melee . | . . . Projectile . | . . . AOE . | . . . Terrain Rammed . | . . . Walls Destroyed . | . . . Machines Disabled . | . . . Actions | -11 -10 -9 --------- Run | Jun Mat Mat Total 541 | 107 305 129 Wait 55 | 8 41 6 Move 314 | 79 186 49 Hop . | . . . Pick Up 15 | 5 8 2 Fast Attach 9 | 7 1 1 Attach 7 | . 2 5 Detach . | . . . Swap 6 | . 6 . Drop 5 | . 5 . Fire 117 | 8 56 53 Melee . | . . . Ram . | . . . Kick . | . . . Crush 13 | . . 13 Escape Stasis . | . . . Rewire . | . . . Trap . | . . . Miscellaneous . | . . . Route ------- -11/Junkyard -10/Materials -9/Materials History --------- Turn | Location | Event 14 | -11/Junkyard | Discovered new exit (range 16) 172 | -11/Junkyard | Entered Materials 321 | -10/Materials | Build established: Mutant 401 | -10/Materials | Discovered new exit (range 7) 617 | -10/Materials | Core integrity fell below 50% 666 | -10/Materials | Core integrity fell below 20% 694 | -10/Materials | Entered another Materials area 694 | -9/Materials | Evolved 2 slots: Utility x1, Weapon x1 881 | -9/Materials | System corruption reached 10% 924 | -9/Materials | Core integrity fell below 50% 987 | -9/Materials | Build established: Tank 1006 | -9/Materials | Core integrity fell below 20% 1026 | -9/Materials | Destroyed by Lesser Abomination with Improved Medium Laser Last Messages --------------- 01009_ Destroyed Imp. Ion Engine. 01009_ Critical hit (Burn: +37). 01012_ LVK2%QXGJ9EUVRNH/KGXB,WUMQDW %UY#Q 01012_ Assault Rifle destroyed. 01012_ Slammed into Lesser Abomination. 01013_ Lesser Abomination suffers critical hit (Burn). 01016_ Autogun destroyed. 01018_ Lesser Abomination destroyed. 01019_ Lesser Abomination absorbs Lgt. Armor Plating. 01019_ Lesser Abomination absorbs Sml. Matter Pod. 01019_ Acquired 75 matter. 01019_ Assault Rifle destroyed. 01020_ Lesser Abomination absorbs Visual Processing Unit. 01020_ ALERT: Dispatching additional forces to engage threats. 01022_ Acquired Prototype Energy Gun. 01022_ Identified Imp. Medium Laser. 01023_ Lesser Abomination absorbs Heat Sink. 01024_ Lgt. Treads destroyed. 01026_ Critical hit (Burn: +37). 01026_ Lgt. Assault Rifle destroyed. Map ----- +----------------------------------------------------+ | ????????????????????????????????????????????? | | ????????????????????????????????????????????? | | ????????????????????????????????????????????? | | ????????????????????????????+???????????????? | | ?????????????########?????? ?????????????? | | ????????????? #?????? #????????????? | | ???????????? #?????" #????????????? | | ???????????#""" #????"" ?????????????? | | ???????????#""" #????? ?????????????? | | ???????????#""" #????? ??????????????? | | ???????????#""" #????? ??????????????? | | ???????????#""" #????? %%???????????????? | | ???????????# #????? ???????????????? | | ???????????# #???###+###?????????????? | | ??????????####+########## ####### ???? | | ??????????# % % ???? | | ??????????# % ??? | | ??????????# % [% ????? | | ??????????####"#"######## #######???????? | | ??????????# * ####### ###????????????? | | ??????????# # # ###????????????? | | ??????????# # #= #??????????????? | | ??????????# """ # + ########???????? | | ??????????# # # #???????? | | ??????????# [[ """ #AAA" # % #???????? | | ??????????# [[ """ #@A " # #???????? | | ??????????# [[ """ # A=A # #???????? | | ??????????# ??####### % #???????? | | ??????????####+##????????# % #???????? | | ?????????????? ??????????# #???????? | | ?????????????? ??????????# ^ ??????? | | ?????????????? ??????????# % ^ ????? | | ?????????????? ??????????# "???? | | ?????????????? ??????????# % ""???? | | ?????????????? ??????????# % ????? | | ?????????????? ??????????# ????? | | ?????????????????????????# ??????? | | ?????????????????????????#%[ #######????????? | | ?????????????????????????# =???????????????? | | ?????????????????????????? ???????????????? | | ????????????????????????????????????????????? | | ????????????????????????????????????????????? | | ????????????????????????????????????????????? | | ????????????????????????????????????????????? | | ????????????????????????????????????????????? | | ????????????????????????????????????????????? | | ????????????????????????????????????????????? | | ????????????????????????????????????????????? | | ????????????????????????????????????????????? | | ????????????????????????????????????????????? | +----------------------------------------------------+ Best States ------------- Heat Dissipation 28 Energy Generation 10 Energy Capacity 250 Matter Stores 300 Matter Capacity 500 Sight Range 16 Terrain Scan Density 10 Armor Coverage 225 Evasion (%) 40 Recoil Reduction 2 Item Schematics ----------------- None Robot Schematics ------------------ None Fabricated ------------ Nothing Alien Tech Used ----------------- None Achievements -------------- None Challenges ------------ None Game ------ Seed LegHardenedMatter Manual? 0 Play Time 00:16:14 Cumulative 562.0 hours Start 2023.11.30 @ 02:07:34 End 2023.11.30 @ 02:21:21 Sessions 1 Manual Loads 0 Difficulty Rogue Special Mode Halloween2019/Abominations Game No. 54 Rogue 44 Adventurer 5 Explorer 5 Win Type - Total 22 Types 6/5/4/0/3/1/2/0/1 Lore% 86 Gallery% 92 Achievement% 85 Wizard Run 0 Options --------- ASCII 0 Keyboard 1 Movement Numpad Keybinds 0 Fullscreen 1 Font 18/SmallcapsGlow Map View 76x50 Tactical HUD 1 Map Filters NONE Filters NONE Steam 1 RUN: 9d2094c2-c365-4e8b-818a-2644f7abce4a